[Event "US Masters 2024"]
[Site "Charlotte"]
[Date "2024.11.28"]
[Round "2.1"]
[White "Caruana, Fabiano"]
[Black "Risteski, Emil"]
[Result "1-0"]
[ECO "E17"]
[WhiteElo "2805"]
[BlackElo "2378"]
[Annotator "TA"]
[PlyCount "177"]
[EventDate "2024.09.23"]
[EventType "swiss"]
[EventCountry "USA"]
[SourceTitle "playchess.com"]
[Source "ChessBase"]
[SourceQuality "1"]
[TimeControl "5400+30"]

{[%evp 13,177,21,17,23,36,9,19,22,21,16,23,22,17,15,12,9,18,16,13,0,0,0,56,43,45,48,54,52,58,54,62,54,56,45,53,35,37,20,57,56,117,109,101,50,43,49,39,45,45,45,45,45,45,45,45,17,17,17,17,10,10,10,10,10,10,10,10,10,33,18,41,25,25,25,49,12,49,49,49,25,37,0,35,21,50,0,42,35,46,0,0,0,16,8,8,8,8,0,35,44,41,45,41,43,43,19,48,51,51,51,52,49,42,43,85,65,65,64,53,42,43,42,65,65,65,65,65,65,65,65,60,33,61,78,116,94,97,96,156,150,208,178,173,173,131,0,153,87,247,67,410,408,416,416,989,951,960,935,852,829,688,556,780,450,29963,10555]} 1. d4 {[%emt 0:00:44]} Nf6 {[%emt 0:00:26]} 2. c4 {[%emt 0:00:14]} e6 {[%emt 0:00:24]} 3. Nf3 {[%emt 0:00:10]} b6 {[%emt 0:00:09]} 4. g3 {[%emt 0:00:40]} Bb7 {[%emt 0:00:07]} 5. Bg2 {[%emt 0:00:07]} Be7 {[%emt 0:00:04]} 6. O-O {[%emt 0:00:36]} O-O {[%emt 0:00:10]} 7. Re1 {[%emt 0:00:07]} Qc8 {[%emt 0:13:00]} 8. Nc3 {[%emt 0:09:00]} Ne4 {[%emt 0:01:19]} 9. Bd2 {[%emt 0:00:10]} d6 {[%emt 0:06:07]} 10. d5 {[%emt 1:23:42] The position is equal.} Nxd2 {[%emt 0:03:04]} 11. Qxd2 {[%emt 0:00:00]} e5 {[%emt 0:01:10]} 12. b4 {[%emt 0:00:00][%cal Oc4c5]} Nd7 {[%emt 0:06:58]} 13. e4 {[%emt 0:00:00]} Qd8 {[%emt 0:03:06]} 14. Qe2 {[%emt 0:00:00]} Bc8 {[%emt 0:03:05]} 15. Nd2 {[%emt 0:00:00]} g6 {[%emt 0:06:24]} 16. a4 {[%emt 0:00:00]} a5 {[%emt 0:06:19]} 17. bxa5 $1 {[%emt 0:00:00]} Nc5 {[%emt 0:00:14]} (17... Rxa5 $11 18. Nb3 Ra6) 18. axb6 $14 {[%emt 0:00:00]} cxb6 {[%emt 0:00:05]} 19. Ra3 {[%emt 0:00:00]} Bd7 {[%emt 0:01:34][%cal Oh7h5]} 20. Rea1 {[%emt 0:00:00]} Kg7 {[%emt 0:08:37]} 21. Nb3 {[%emt 0:00:00][%cal Bd2b3,Bb3c1,Bc1d3][%mdl 32]} Nb7 {[%emt 0:00:07]} 22. Nb5 {[%emt 0:00:00]} h5 {[%emt 0:00:36]} 23. h4 {[%emt 0:00:00]} Rh8 {[%emt 0:00:14]} 24. Rf1 {[%emt 0:00:00]} Bf6 {[%emt 0:09:20]} 25. Qe3 {[%emt 0:00:00]} Ra6 {[%emt 0:00:36]} 26. Nc1 {[%emt 0:00:00]} Qb8 {[%emt 0:05:58]} (26... Na5 $14 27. Qd3 (27. Nxd6 $2 Qe7 $19) 27... Qc8) 27. Nd3 $16 {[%emt 0:00:00]} Na5 {[%emt 0:00:15]} 28. Rc1 {[%emt 0:00:00] White is more active.} (28. Rc3 $16) 28... Nxc4 $14 {[%emt 0:01:44]} 29. Rxc4 {[%emt 0:00:00]} Bxb5 {[%emt 0:00:05]} 30. Rb4 {[%emt 0:00:00]} Bxd3 {[%emt 0:04:46]} 31. Qxd3 {[%emt 0:00:00]} Qa7 {[%emt 0:05:55]} 32. Bf1 {[%emt 0:00:00]} Ra5 {[%emt 0:00:09][%cal Ob6b5]} 33. Qb1 {[%emt 0:00:00]} Rc8 {[%emt 0:03:39]} 34. Bb5 {[%emt 0:00:00]} Rc5 {[%emt 0:00:15]} 35. Kg2 {[%emt 0:00:00]} Bd8 {[%emt 0:01:23]} 36. Qd3 {[%emt 0:00:00]} Qe7 {[%emt 0:01:51]} 37. Rc3 {[%emt 0:00:00]} Ra7 {[%emt 0:00:46]} 38. Rbb3 {[%emt 0:00:00]} Bc7 {[%emt 0:00:45]} 39. Qd2 {[%emt 0:00:00]} Bd8 {[%emt 0:00:42]} 40. Qb2 {[%emt 0:00:00]} Bc7 {[%emt 0:00:54]} 41. Rc1 {[%emt 0:00:00]} Ra8 {[%emt 0:01:30]} 42. Rf1 {[%emt 0:00:00]} Kg8 {[%emt 0:00:43]} 43. Qe2 {[%emt 0:00:00]} Rf8 {[%emt 0:00:58]} 44. Rh1 {[%emt 0:00:00] Black is weak on the light squares} Kg7 {[%emt 0:00:36]} 45. Rbb1 {[%emt 0:00:29]} Bd8 {[%emt 0:00:21]} 46. Rbc1 {[%emt 0:00:43]} Qa7 {[%emt 0:00:35]} 47. Qd2 {[%emt 0:01:52]} Rh8 {[%emt 0:00:43]} 48. Rc2 {[%emt 0:00:38]} Bc7 {[%emt 0:00:23]} 49. Ra1 {[%emt 0:00:24]} ({White should try} 49. Rb1 $14) 49... Rb8 {[%emt 0:01:08]} 50. Rf1 {[%emt 0:01:29]} Rf8 {[%emt 0:00:22]} 51. Rxc5 {[%emt 0:01:37]} (51. Qd3 $14) 51... bxc5 $11 {[%emt 0:00:12]} 52. f4 {[%emt 0:00:03]} exf4 {[%emt 0:01:13]} 53. Qxf4 {[%emt 0:00:27]} Qb8 {[%emt 0:00:40]} 54. Qf6+ {[%emt 0:02:05]} Kg8 {[%emt 0:00:05]} 55. e5 {[%emt 0:00:47]} Bd8 {[%emt 0:05:04]} 56. Qxd6 {[%emt 0:01:51]} Bc7 {[%emt 0:00:03]} 57. Qxc5 {[%emt 0:00:57]} Bxe5 {[%emt 0:00:03]} 58. Rf3 $36 {[%emt 0:01:03][%mdl 2048] White is pushing.} Bd6 {[%emt 0:00:51]} 59. Qd4 {[%emt 0:01:10]} Qd8 {[%emt 0:01:10]} 60. Qf6 {[%emt 0:00:26]} Be7 {[%emt 0:00:15]} 61. Qc6 {[%emt 0:00:47]} Bd6 {[%emt 0:00:13]} 62. Qd7 {[%emt 0:01:54]} Qxd7 {[%emt 0:00:20]} 63. Bxd7 $14 {[%emt 0:00:04][%mdl 4096] Endgame. KRB-KRB} Ra8 {[%emt 0:01:07]} 64. Bc6 {[%emt 0:02:28]} Ra5 {[%emt 0:00:22]} 65. Be8 {[%emt 0:02:58]} Ra7 {[%emt 0:00:51]} 66. Kf2 {[%emt 0:01:02]} Kf8 {[%emt 0:00:14]} 67. Bb5 {[%emt 0:00:08]} Ke7 {[%emt 0:00:17]} 68. Ke3 {[%emt 0:00:29]} Be5 {[%emt 0:00:23]} 69. Kd3 {[%emt 0:00:13]} Bd6 {[%emt 0:01:21]} 70. Kc4 {[%emt 0:00:11]} Ra5 {[%emt 0:00:06]} 71. Re3+ {[%emt 0:01:38]} Kf6 {[%emt 0:00:40]} 72. Be8 {[%emt 0:00:18]} Rc5+ {[%emt 0:00:45]} 73. Kd4 {[%emt 0:00:04]} Rc8 {[%emt 0:00:05] [#] Hoping for ...Bc5+.} 74. Bc6 {[%emt 0:00:37]} ({Reject} 74. Rf3+ $6 Kg7 75. Bc6 (75. Bxf7 Rb8 $11) (75. Rxf7+ Kg8 $11) 75... Rb8 $14) 74... Rb8 {[%emt 0:00:38]} 75. a5 {[%emt 0:02:01][%cal Ba4a5,Ba5a6][%mdl 32]} Rb1 {[%emt 0:00:18]} (75... Rb4+ $142 76. Kc3 Rb1) 76. a6 $16 {[%emt 0:00:22]} Ra1 {[%emt 0:00:06]} (76... Bc7 $16) 77. Bb5 $18 {[%emt 0:00:19]} Ra5 {[%emt 0:00:50]} 78. Kc4 {[%emt 0:00:08]} Ra1 {[%emt 0:00:02]} 79. Kd4 {[%emt 0:01:27]} Ra5 $1 {[%emt 0:00:13]} 80. Rb3 {[%emt 0:00:06]} Be7 $2 {[%emt 0:01:00]} (80... Ke7 $16) 81. Bc4 $2 {[%emt 0:01:08]} ({Better is} 81. Kc4 $18 {[%cal Ob3b4] Black must now prevent Rb4!} Ra2 82. Rb4 (82. Rf3+ Kg7 $18) 82... Rc2+ 83. Kb3) 81... Bd6 $2 {[%emt 0:00:12][%mdl 8192]} (81... Bc5+ $14 82. Ke4 Ra4) 82. Rb6 {[%emt 0:00:46]} Ke7 {[%emt 0:00:04] [#] Strongly threatening ...Bc5+.} 83. Rb7+ {[%emt 0:00:02]} Ke8 {[%emt 0:02:05]} (83... Kd8 $142 84. Bb5 (84. Rxf7 Bxg3 85. Rb7 Bh2 $18) 84... Kc8) 84. Bb5+ {[%emt 0:00:18]} Kf8 {[%emt 0:00:00]} 85. a7 {[%emt 0:00:19]} Kg7 {[%emt 0:00:04]} 86. Kc4 {[%emt 0:00:41]} Bxg3 {[%emt 0:00:04]} 87. Be8 {[%emt 0:00:25]} Bxh4 {[%emt 0:01:35]} 88. Rxf7+ {[%emt 0:00:19]} ({And not} 88. Bxf7 Bf2 $11) 88... Kh6 {[%emt 0:00:03]} (88... Kg8 $18 89. d6 Bg3) 89. Bc6 {[%emt 0:00:11] Weighted Error Value: White=0.10 (very precise) /Black=0.12 (very precise) .  Loses game:     	---       	Black=1      Missed win:     	White=1     	---        Mistake:       	White=3     	Black=7      Inaccurate:     	White=5     	Black=10     OK:         	White=20    	Black=24     Best:        	White=8     	Black=5      Strong:       	White=1     	Black=1} 1-0

[Event "US Masters 2024"]
[Site "Charlotte"]
[Date "2024.11.28"]
[Round "2.2"]
[White "Oparin, Grigoriy"]
[Black "Fishbein, Alexander"]
[Result "1-0"]
[ECO "C55"]
[WhiteElo "2653"]
[BlackElo "2373"]
[Annotator "TA"]
[PlyCount "83"]
[EventDate "2024.09.23"]
[EventType "swiss"]
[EventCountry "USA"]
[SourceTitle "playchess.com"]
[Source "ChessBase"]
[SourceQuality "1"]
[TimeControl "5400+30"]

{[%evp 12,83,8,10,14,16,28,21,27,29,31,3,16,0,0,-8,29,16,6,18,8,-23,-18,-21,-28,-22,-10,-21,-12,-7,-22,-36,0,0,0,0,0,0,38,0,0,0,0,0,0,0,0,0,0,0,30,0,94,77,85,80,164,174,406,409,541,530,657,673,897,906,1040,1057,1131,1067,1171,1107,1172,1166]} 1. e4 {[%emt 0:00:03]} e5 {[%emt 0:04:41]} 2. Nf3 {[%emt 0:00:07]} Nc6 {[%emt 0:00:09]} 3. Bc4 {[%emt 0:00:05]} Nf6 {[%emt 0:00:09]} 4. d3 {[%emt 0:00:05]} Be7 {[%emt 0:00:05]} 5. O-O {[%emt 0:00:11]} O-O {[%emt 0:00:03]} 6. Nc3 {[%emt 0:00:23]} d6 {[%emt 0:00:36]} 7. a3 {[%emt 0:00:06]} a5 {[%emt 0:02:15]} 8. h3 {[%emt 0:03:08]} h6 {[%emt 0:01:12]} 9. Be3 {[%emt 0:01:43]} Re8 {[%emt 0:01:51] The position is equal.} 10. Nd2 {[%emt 0:08:27]} Be6 {[%emt 0:05:46]} 11. Nd5 {[%emt 0:20:27]} a4 {[%emt 0:08:05]} 12. f4 {[%emt 0:09:03]} exf4 {[%emt 0:02:34]} 13. Bxf4 {[%emt 0:00:50]} (13. Nxf4 Bxc4 14. dxc4 Nd7 $15) 13... Ra5 {[%emt 0:03:14]} 14. Qf3 {[%emt 0:13:18]} (14. Nxe7+ {simplifies} Qxe7 15. Bxe6 Qxe6 16. Nf3) 14... Ne5 {[%emt 0:20:55]} 15. Bxe5 {[%emt 0:00:30]} dxe5 {[%emt 0:00:06]} 16. Nxf6+ {[%emt 0:03:52]} Bxf6 {[%emt 0:00:19]} 17. Bxe6 {[%emt 0:00:04]} Rxe6 {[%emt 0:00:51]} 18. Nc4 {[%emt 0:00:03]} Rc5 {[%emt 0:03:40]} 19. Rf2 {[%emt 0:07:44]} Qd7 {[%emt 0:03:41]} 20. Raf1 {[%emt 0:06:00]} Bg5 {[%emt 0:06:46]} 21. Qh5 {[%emt 0:04:08][%cal Rf2f7]} (21. Qxf7+ $2 {loses.} Qxf7 22. Rxf7 b5 23. Rf8+ Kh7 $17) 21... g6 {[%emt 0:13:16]} 22. Qe2 {[%emt 0:00:35] [#] Strongly threatening Rxf7.} Re7 {[%emt 0:02:19]} 23. Kh2 {[%emt 0:08:37]} h5 {[%emt 0:05:31]} 24. g3 {[%emt 0:00:03]} Kg7 {[%emt 0:05:08]} 25. h4 {[%emt 0:05:19]} Bh6 {[%emt 0:00:04]} 26. Rf6 {[%emt 0:00:57]} Kg8 {[%emt 0:05:58]} 27. Kg2 {[%emt 0:03:38]} Bg7 {[%emt 0:01:04]} 28. R6f2 {[%emt 0:00:05]} Bh6 {[%emt 0:00:15]} 29. Rf6 {[%emt 0:00:46]} Bg7 {[%emt 0:00:04]} 30. R6f3 {[%emt 0:00:03]} Rb5 {[%emt 0:01:24]} 31. Ne3 {[%emt 0:02:29]} c6 {[%emt 0:01:19]} (31... Rxb2 $2 {perishes.} 32. Nd5 $18) (31... Qe6 $11) 32. Nc4 {[%emt 0:00:04]} Bh6 {[%emt 0:01:08]} 33. Qf2 {[%emt 0:00:44] aiming for c3.} Bg7 {[%emt 0:00:43]} (33... f5 $16 {might work better.}) 34. Qa7 $18 {[%emt 0:00:31]} b6 $2 {[%emt 0:00:56] [#]} (34... f5) 35. Qxa4 {[%emt 0:00:56]} f5 {[%emt 0:00:12]} 36. b4 {[%emt 0:00:43] White is clearly winning.} Qe6 {[%emt 0:01:16]} 37. Qb3 {[%emt 0:00:55]} ({Less strong is} 37. exf5 gxf5 38. Rxf5 e4 $18) 37... c5 {[%emt 0:00:06]} 38. Nd6 {[%emt 0:00:14]} fxe4 {[%emt 0:00:22]} 39. dxe4 {[%emt 0:00:13]} c4 {[%emt 0:00:14]} 40. Qxc4 {[%emt 0:00:29]} Qxc4 {[%emt 0:00:09]} 41. Nxc4 {[%emt 0:00:04]} Rc7 {[%emt 0:00:06]} 42. Nd6 {[%emt 0:00:04] Weighted Error Value: White=0.07 (flawless) /Black=0.36.  Mistake:       	---       	Black=3      Inaccurate:     	White=4     	Black=6      OK:         	White=11    	Black=12} 1-0

[Event "US Masters 2024"]
[Site "Charlotte"]
[Date "2024.11.28"]
[Round "2.3"]
[White "Zhao, Erick"]
[Black "Donchenko, Alexander"]
[Result "0-1"]
[ECO "B53"]
[WhiteElo "2387"]
[BlackElo "2617"]
[Annotator "TA"]
[PlyCount "54"]
[EventDate "2024.09.23"]
[EventType "swiss"]
[EventCountry "USA"]
[SourceTitle "playchess.com"]
[Source "ChessBase"]
[SourceQuality "1"]
[TimeControl "5400+30"]

{[%evp 9,54,39,50,-15,-12,-2,-3,0,-6,-16,-8,-40,-8,-41,0,0,9,-44,-27,-25,-32,-24,-47,-59,0,-45,-50,-49,-44,-42,-48,-43,-51,-62,-75,-147,-117,-295,-287,-373,-389,-497,-491,-487,-497,-483,-476]} 1. e4 {[%emt 0:07:27]} c5 {[%emt 0:00:19]} 2. Nf3 {[%emt 0:00:39]} d6 {[%emt 0:00:05]} 3. d4 {[%emt 0:00:15]} cxd4 {[%emt 0:00:06]} 4. Qxd4 {[%emt 0:00:12]} Nf6 {[%emt 0:00:25]} 5. e5 {[%emt 0:00:30]} Nc6 {[%emt 0:00:43]} 6. Qa4 {[%emt 0:00:10]} ({Better is} 6. Bb5 $14 Qa5+ 7. Nc3 Qxb5 8. Nxb5 Nxd4 9. Nbxd4 dxe5 10. Nxe5) 6... Ng4 $11 {[%emt 0:03:29] [#] Strongly threatening ...Qb6.} 7. Bb5 {[%emt 0:00:33]} Ngxe5 {[%emt 0:01:03]} 8. Nxe5 {[%emt 0:00:29] The position is equal.} dxe5 {[%emt 0:00:05]} 9. Bxc6+ {[%emt 0:00:55]} bxc6 {[%emt 0:00:06]} 10. Be3 {[%emt 0:00:09]} g6 {[%emt 0:03:25]} 11. Nc3 {[%emt 0:24:32][%cal Oh2h4]} Bg7 {[%emt 0:00:54]} (11... Qc7 $15) 12. Qxc6+ {[%emt 0:08:36]} Bd7 {[%emt 0:00:16]} 13. Qb7 {[%emt 0:00:29]} (13. Qa6 $11) 13... Qb8 $15 {[%emt 0:08:21]} 14. Qxb8+ {[%emt 0:05:45]} Rxb8 {[%emt 0:00:18]} 15. O-O-O {[%emt 0:00:07]} Bc6 {[%emt 0:14:39]} 16. f3 {[%emt 0:04:31]} Rb7 {[%emt 0:02:06]} ({Black should try} 16... e4 $15 17. f4 (17. Bxa7 Rb7 $17) (17. fxe4 Bxc3 18. bxc3 Bxe4 $15) 17... Bxc3 18. bxc3 f6) 17. Rd3 {[%emt 0:06:04]} f5 {[%emt 0:01:48]} 18. Rhd1 {[%emt 0:13:09]} Kf7 {[%emt 0:00:27]} 19. Rd8 {[%emt 0:02:08]} Re8 {[%emt 0:02:53]} 20. Rxe8 {[%emt 0:06:34]} Kxe8 {[%emt 0:00:09]} 21. Bc5 {[%emt 0:03:32]} g5 {[%emt 0:03:12]} 22. Nd5 {[%emt 0:02:15]} (22. Ne2 $142) 22... e4 $17 {[%emt 0:13:06]} 23. Nb4 $2 {[%emt 0:05:48] [#] This move loses the game for White.} (23. Bd4 $17 Bxd4 (23... Bxd5 24. Bxg7 Bc6 25. fxe4 $17) 24. Rxd4 exf3 25. gxf3) 23... exf3 $1 $19 {[%emt 0:04:41]} ({Resist} 23... Rb5 24. Bxe7 exf3 (24... Bxb2+ 25. Kxb2 Kxe7 26. Kc3 $17) 25. a4 (25. Nxc6 $2 Bxb2+ 26. Kb1 Bd4+ 27. Bb4 fxg2 $19) 25... Rxb4 26. Bxb4 fxg2 (26... Bxa4 $2 27. gxf3 Bc6 28. Rd3 $18) 27. Re1+ Be4 28. Bc5 $19) 24. Nxc6 {[%emt 0:03:18] aiming for Bd4.} Bxb2+ {[%emt 0:00:09]} 25. Kd2 {[%emt 0:00:05]} Rd7+ {[%emt 0:00:56] Black is clearly winning.} ({Not} 25... fxg2 26. Bg1 $17) 26. Bd4 {[%emt 0:00:05]} Bxd4 {[%emt 0:00:14]} 27. gxf3 {[%emt 0:00:10]} Rd6 {[%emt 0:02:32] Weighted Error Value: White=0.35/Black=0.07 (flawless) .  Loses game:     	White=1     	---        Mistake:       	White=2     	Black=2      Inaccurate:     	White=3     	Black=1      OK:         	White=8     	Black=8      Best:        	White=3     	Black=6      Strong:       	---       	Black=1} 0-1

[Event "US Masters 2024"]
[Site "Charlotte"]
[Date "2024.11.28"]
[Round "2.4"]
[White "Mishra, Abhimanyu"]
[Black "Stefanov, Emil"]
[Result "1/2-1/2"]
[ECO "C55"]
[WhiteElo "2616"]
[BlackElo "2362"]
[Annotator "TA"]
[PlyCount "65"]
[EventDate "2024.09.23"]
[EventType "swiss"]
[EventCountry "USA"]
[SourceTitle "playchess.com"]
[Source "ChessBase"]
[SourceQuality "1"]
[TimeControl "5400+30"]

{[%evp 14,65,39,23,31,27,29,14,13,10,12,12,18,0,0,0,0,0,0,-33,0,-35,-25,-36,-18,-25,0,0,0,0,0,0,0,0,14,10,18,12,14,20,19,0,0,0,0,-17,18,8,10,-18,-27,-31,-10,-8]} 1. e4 {[%emt 0:00:02]} e5 {[%emt 0:00:15]} 2. Nf3 {[%emt 0:00:14]} Nc6 {[%emt 0:00:10]} 3. Bc4 {[%emt 0:00:33]} Nf6 {[%emt 0:00:10]} 4. d3 {[%emt 0:00:46]} Be7 {[%emt 0:00:25]} 5. O-O {[%emt 0:00:56]} O-O {[%emt 0:00:07]} 6. Re1 {[%emt 0:00:10]} d6 {[%emt 0:00:27]} 7. a4 {[%emt 0:00:21]} Be6 {[%emt 0:01:06]} 8. Nbd2 {[%emt 0:02:30]} a5 {[%emt 0:02:05]} 9. h3 {[%emt 0:03:49]} h6 {[%emt 0:01:30]} 10. b3 {[%emt 0:01:06]} Nh7 {[%emt 0:06:26]} 11. Nf1 {[%emt 0:12:32]} Ng5 {[%emt 0:06:12]} 12. Bxg5 {[%emt 0:02:51]} Bxg5 {[%emt 0:00:47]} 13. Bxe6 {[%emt 0:00:24]} fxe6 {[%emt 0:00:08]} 14. c3 {[%emt 0:00:04]} Qf6 {[%emt 0:15:17]} 15. N1h2 {[%emt 0:04:22]} Qg6 {[%emt 0:04:53]} 16. g3 {[%emt 0:05:36] White is weak on the dark squares} Rf7 {[%emt 0:01:08]} 17. Kg2 {[%emt 0:02:10]} Raf8 {[%emt 0:00:46]} 18. Ra2 {[%emt 0:01:29]} Bd8 {[%emt 0:03:54]} 19. Rb2 {[%emt 0:06:28]} h5 {[%emt 0:08:27]} 20. h4 {[%emt 0:06:37]} Kh8 {[%emt 0:03:43][%cal Bg8h8,Bh8h7,Bh7h6][%mdl 32]} 21. Re3 {[%emt 0:06:16]} Qh6 {[%emt 0:01:16]} 22. Qd2 {[%emt 0:08:03]} Kh7 {[%emt 0:09:15]} 23. Re2 {[%emt 0:07:32][%cal Be3e2,Be2d2,Bd2d1][%mdl 32]} Qxd2 {[%emt 0:00:27]} 24. Rexd2 {[%emt 0:01:16]} Kh6 {[%emt 0:00:16]} 25. b4 {[%emt 0:03:21]} axb4 {[%emt 0:12:14]} 26. cxb4 {[%emt 0:00:01]} g5 {[%emt 0:00:09]} 27. b5 {[%emt 0:03:50]} Na5 {[%emt 0:00:08] Threatens to win with ...gxh4.} 28. hxg5+ {[%emt 0:01:48]} Bxg5 {[%emt 0:00:05]} 29. Rd1 {[%emt 0:03:29]} b6 {[%emt 0:01:47]} 30. d4 {[%emt 0:03:53]} exd4 {[%emt 0:00:08] [#] Hoping for ...e5.} 31. Nxg5 {[%emt 0:04:05]} Kxg5 {[%emt 0:00:06]} 32. f4+ {[%emt 0:03:07]} Kh6 {[%emt 0:01:29]} 33. Rxd4 {[%emt 0:00:11] Weighted Error Value: White=0.08 (flawless) /Black=0.07 (flawless) .  Inaccurate:     	White=3     	Black=2      OK:         	White=11    	Black=8      Best:        	White=1     	---} 1/2-1/2

[Event "US Masters 2024"]
[Site "Charlotte"]
[Date "2024.11.28"]
[Round "2.5"]
[White "Bortnyk, Olexandr"]
[Black "Ippolito, Dean"]
[Result "1-0"]
[ECO "C47"]
[WhiteElo "2603"]
[BlackElo "2347"]
[Annotator "TA"]
[PlyCount "81"]
[EventDate "2024.09.23"]
[EventType "swiss"]
[EventCountry "USA"]
[SourceTitle "playchess.com"]
[Source "ChessBase"]
[SourceQuality "1"]
[TimeControl "5400+30"]

{[%evp 9,81,25,15,9,22,12,5,0,0,3,6,0,0,0,0,0,12,0,0,0,-10,-5,0,0,0,-3,0,-8,-5,-7,-11,-4,-14,-28,0,0,0,0,0,0,0,0,25,5,23,25,75,104,102,86,72,69,69,21,16,40,18,19,15,0,14,0,209,237,469,469,462,462,29983,29984,29984,29985,29985,29986]} 1. e4 {[%emt 0:29:45]} e5 {[%emt 0:02:17]} 2. Nf3 {[%emt 0:00:30]} Nf6 {[%emt 0:00:21]} 3. Nc3 {[%emt 0:02:41]} Nc6 {[%emt 0:00:06]} 4. h3 {[%emt 0:00:03]} d5 {[%emt 0:06:18]} 5. exd5 {[%emt 0:01:55]} Nxd5 {[%emt 0:00:15]} 6. Bb5 {[%emt 0:00:39]} Nxc3 {[%emt 0:00:10]} 7. bxc3 {[%emt 0:00:05]} Bd6 {[%emt 0:00:30]} 8. O-O {[%emt 0:04:43][%cal Of3e5] The position is equal.} O-O {[%emt 0:00:24]} 9. Re1 {[%emt 0:03:38]} Qf6 {[%emt 0:03:21]} 10. d3 {[%emt 0:09:33]} h6 {[%emt 0:01:37]} 11. Rb1 {[%emt 0:04:38]} Ne7 {[%emt 0:18:45]} 12. Bc4 {[%emt 0:04:26]} a6 {[%emt 0:08:45]} 13. d4 {[%emt 0:07:00]} exd4 {[%emt 0:00:50]} 14. Qxd4 {[%emt 0:00:26]} Qxd4 {[%emt 0:02:20]} 15. cxd4 {[%emt 0:00:37]} b5 {[%emt 0:00:26]} 16. Bb3 {[%emt 0:00:57]} Bf5 {[%emt 0:09:08]} 17. g4 {[%emt 0:02:36]} Bh7 {[%emt 0:00:06]} 18. Ne5 {[%emt 0:00:21]} a5 {[%emt 0:06:01][%cal Ba6a5,Ba5a4][%mdl 32] Strongly threatening ...a4.} 19. a3 {[%emt 0:02:58]} a4 {[%emt 0:12:33]} 20. Ba2 {[%emt 0:01:08]} c6 {[%emt 0:00:06]} 21. Re2 {[%emt 0:00:48]} Rac8 {[%emt 0:03:24]} 22. f4 $1 {[%emt 0:04:51][%cal Bf2f4,Bf4f5][%mdl 32]} Nd5 {[%emt 0:00:51]} 23. Bxd5 {[%emt 0:00:45]} cxd5 {[%emt 0:00:02]} 24. f5 $1 {[%emt 0:01:33]} Rfe8 {[%emt 0:02:16] Threatens to win with ...f6.} (24... f6 25. Nd3 $14) 25. Rf2 {[%emt 0:01:02]} Rc3 {[%emt 0:16:49]} 26. Rxb5 {[%emt 0:01:04][%cal Bb1b5,Bb5d5,Bd5a5,Ba5a8][%mdl 32]} Rxh3 {[%emt 0:00:27]} 27. Rxd5 {[%emt 0:01:29]} Bxa3 {[%emt 0:01:58]} (27... Bxe5 $11 {remains equal.} 28. dxe5 (28. Rxe5 Rxe5 29. dxe5 Rh4 $11) 28... Rh4) 28. Kg2 $16 {[%emt 0:00:08]} Rc3 {[%emt 0:00:06]} 29. Bxa3 {[%emt 0:00:05]} Rxa3 {[%emt 0:00:02]} 30. Ra5 {[%emt 0:01:44]} f6 {[%emt 0:01:07]} 31. Nd3 {[%emt 0:02:35]} (31. Nc4 $14 {deserves consideration.} Ra1 32. d5) 31... Re4 $1 $11 {[%emt 0:01:21][%csl LRd4,LRg4]} 32. Ra8+ {[%emt 0:03:04]} Kf7 {[%emt 0:00:03]} 33. Ra7+ {[%emt 0:00:44]} Re7 $1 {[%emt 0:01:43]} 34. Ra8 {[%emt 0:00:14]} Re4 {[%emt 0:00:05]} 35. Nf4 {[%emt 0:01:13] And now d5 would win.} h5 $2 {[%emt 0:01:57]} (35... Rxd4 $11 {and Black is okay.} 36. Rf3 Rd2+ 37. Rf2 Rd4) 36. d5 $1 $18 {[%emt 0:01:14][%cal Bd4d5,Bd5d6,Bd6d7][%mdl 32] d6 would now be deadly.} (36. Nxh5 Rxg4+ 37. Kf1 Rh3 38. Ra7+ Kf8 39. Nxg7 Rxg7 $11) (36. gxh5 Bxf5 37. d5 Ra1 $11) 36... hxg4 $2 {[%emt 0:00:14]} (36... Re8 37. Rxe8 Kxe8) 37. Ne6 {[%emt 0:00:08] Black must now prevent Ra7+.} g3 {[%emt 0:02:16]} (37... Ke7 38. Ra6 Bxf5 39. Rxf5 $18) 38. Ra7+ {[%emt 0:00:09]} Ke8 {[%emt 0:00:00] [#]} (38... Kg8 $18 39. d6 (39. Rxg7+ Kh8 $11) 39... Bxf5 (39... gxf2 40. Ra8+ Kf7 41. Rf8#) (39... Rxe6 $2 40. fxe6 Be4+ 41. Kg1 $18) 40. Rxf5 (40. Rxg7+ Kh8 $16) 40... Rxe6) 39. d6 $1 {[%emt 0:00:35][%csl Gd6][%cal Ra7e7] White mates.} Rxe6 {[%emt 0:00:21] [#]} 40. d7+ $1 {[%emt 0:00:05]} (40. Ra8+ Kd7 41. fxe6+ Kxe6 $15) 40... Kd8 {[%emt 0:00:36] [#]} 41. Rd2 $1 {[%emt 0:00:05] Weighted Error Value: White=0.04 (flawless) /Black=0.40.  Loses game:     	---       	Black=1      Mistake:       	White=1     	Black=3      Inaccurate:     	---       	Black=1      OK:         	White=12    	Black=15     Best:        	White=6     	Black=2      Strong:       	White=2     	Black=2} (41. fxe6 $2 {too greedy.} Be4+ (41... gxf2 $2 {loses.} 42. Ra8+ Ke7 43. Re8+ Kd6 44. d8=Q+ $18) 42. Kf1 Ra1+ (42... gxf2 $2 43. Ra5 $19) 43. Ke2 gxf2 $19) 1-0